bitfinex-derivatives/quotes_BTCF0:USTF0_20241008
["timestamp","ask_amount","ask_price","bid_price","bid_amount"]
[1728349646771,0.012,62558.0,62557.0,0.560747]
[1728349647076,0.00239835,62563.0,62557.0,0.4808]
[1728349647265,0.00239835,62563.0,62561.0,0.079942]
[1728349649775,0.00239835,62563.0,62562.0,0.07994]
[1728349650173,0.01639835,62563.0,62562.0,0.07994]
[1728349651072,0.07994,62562.0,62561.0,0.02773563]
[1728349651278,0.07994,62562.0,62561.0,0.02673563]
[1728349651475,0.079942,62561.0,62557.0,0.3608]
[1728349651683,0.12,62559.0,62557.0,0.3608]
[1728349651875,0.05735004,62558.0,62557.0,0.3608]
[1728349652273,0.05735004,62558.0,62557.0,0.440747]
[1728349652678,0.05735004,62558.0,62557.0,0.46722995]
[1728349653476,0.05735004,62558.0,62557.0,0.38728295]
[1728349653675,0.06935004,62558.0,62557.0,0.38828295]
[1728349656680,0.06935004,62558.0,62557.0,0.46822995]
[1728349656979,0.06935004,62558.0,62557.0,0.38828295]
[1728349657482,0.06935004,62558.0,62557.0,0.02748295]
[1728349658788,0.012,62558.0,62557.0,0.02748295]
[1728349666883,0.06934984,62558.0,62557.0,0.02748295]
[1728349667987,0.06934984,62558.0,62557.0,0.10742995]
[1728349673896,0.012,62558.0,62557.0,0.10742995]
[1728349680382,0.012,62558.0,62557.0,0.46822995]
[1728349680601,0.012,62558.0,62557.0,1.54778995]
[1728349681714,0.0037,62565.0,62564.0,0.079938]
[1728349681899,0.00239801,62571.0,62570.0,0.07993]
[1728349682087,0.00239801,62571.0,62570.0,0.19993]
[1728349683494,0.00239801,62571.0,62570.0,0.22696385]
[1728349683696,0.01539801,62571.0,62570.0,0.22796385]
[1728349683894,0.01539801,62571.0,62570.0,0.02803385]
[1728349684094,0.21532701,62571.0,62570.0,0.02803385]
[1728349684301,0.21532701,62571.0,62570.0,0.001]
[1728349684495,0.57612701,62571.0,62570.0,0.001]
[1728349688195,0.21532701,62571.0,62570.0,0.001]
[1728349688902,0.27267036,62571.0,62570.0,0.001]
[1728349694302,0.07274136,62571.0,62570.0,0.08093]
[1728349694602,0.01539801,62571.0,62570.0,0.08093]
[1728349696503,0.07274136,62571.0,62570.0,0.08093]
[1728349696804,0.440719,62579.0,62570.0,0.49063]
[1728349696805,0.05734335,62578.0,62570.0,0.49063]
[1728349697007,0.3608,62579.0,62578.0,0.07992]
[1728349698205,0.3608,62579.0,62578.0,0.08092]
[1728349698614,0.440719,62579.0,62578.0,0.001]
[1728349698911,0.3608,62579.0,62578.0,0.08092]
[1728349699608,0.3608,62579.0,62578.0,0.20092]
[1728349699803,0.3608,62586.0,62584.0,0.079912]
[1728349700109,0.3608,62586.0,62584.0,0.199912]
[1728349701213,0.44071,62586.0,62584.0,0.199912]
[1728349701403,0.3608,62586.0,62585.0,0.079911]
[1728349702513,0.079908,62587.0,62585.0,0.079911]
[1728349703310,0.079908,62587.0,62585.0,0.080911]
[1728349703504,0.079905,62590.0,62588.0,0.079906]
[1728349705204,0.079905,62590.0,62589.0,0.079906]
[1728349707104,0.079905,62590.0,62589.0,0.080906]
[1728349707308,0.079905,62590.0,62589.0,0.001]
[1728349708005,0.12896585,62590.0,62589.0,0.001]
[1728349708207,0.079905,62590.0,62589.0,0.001]
[1728349708803,0.12896522,62590.0,62589.0,0.080906]
[1728349709016,0.12896522,62590.0,62589.0,0.001]
[1728349709208,0.079907,62588.0,62587.0,0.079908]
[1728349709513,0.12896722,62588.0,62587.0,0.079908]
[1728349711728,0.13696722,62588.0,62587.0,0.001]
[1728349711914,0.1799793,62588.0,62583.0,0.079912]
[1728349712112,0.1799793,62588.0,62579.0,0.038415]
[1728349712113,0.2518873,62587.0,62582.0,0.12]
[1728349712317,0.1719793,62586.0,62583.0,0.079912]
[1728349712516,0.17197996,62585.0,62583.0,0.079912]
[1728349712722,0.17197996,62584.0,62583.0,0.079912]
[1728349714921,0.17697996,62584.0,62583.0,0.079912]
[1728349715134,0.0621424,62584.0,62583.0,1.304072]
[1728349715429,0.00239696,62591.0,62590.0,0.079905]
[1728349715617,0.07385105,62609.0,62590.0,0.079905]
[1728349715618,0.0037,62599.0,62598.0,0.079894]
[1728349715925,0.33541117,62602.0,62598.0,0.079894]
[1728349715926,0.33541117,62602.0,62601.0,0.079891]
[1728349716114,0.33541117,62602.0,62601.0,0.199891]
[1728349717020,0.33541117,62602.0,62601.0,0.17990191]
[1728349717221,0.0037,62607.0,62601.0,0.17990191]
[1728349717423,0.06556892,62606.0,62605.0,0.12]
[1728349717629,0.25482642,62608.0,62605.0,0.12]
[1728349717922,0.06556892,62610.0,62605.0,0.12]
[1728349718122,0.1228756,62609.0,62605.0,0.12]
[1728349718319,0.05730668,62608.0,62605.0,0.199885]
[1728349718521,0.33470442,62611.0,62605.0,0.079885]
[1728349718522,0.05730668,62607.0,62605.0,0.079885]
[1728349718725,0.40027334,62611.0,62605.0,0.079885]
[1728349718726,0.05730668,62606.0,62605.0,0.080885]
[1728349718929,0.1228756,62606.0,62605.0,0.080885]
[1728349720213,0.17191849,62606.0,62605.0,0.080885]
[1728349722019,0.17191849,62606.0,62605.0,0.001]
[1728349722425,0.17191853,62606.0,62605.0,0.06278501]
[1728349722927,0.1228756,62606.0,62605.0,0.06278501]
[1728349723121,0.05730668,62606.0,62605.0,0.06278501]
[1728349723432,0.1228756,62606.0,62605.0,0.06278501]
[1728349724725,0.3771762,62606.0,62605.0,0.06278501]
[1728349724923,0.3791762,62606.0,62605.0,0.06378501]
[1728349725331,0.36064562,62606.0,62605.0,1.14198501]
[1728349725533,0.36264562,62606.0,62605.0,1.14298501]
[1728349725730,0.10834502,62606.0,62605.0,0.54298501]
[1728349726426,0.10834502,62606.0,62605.0,1.14298501]
[1728349727027,0.002,62606.0,62605.0,1.14298501]
[1728349728323,0.0495,62617.0,62605.0,1.0802]
[1728349728524,0.0495,62617.0,62613.0,0.259875]
[1728349728733,0.0495,62617.0,62615.0,0.079872]
[1728349729235,0.0495,62617.0,62616.0,0.079871]
[1728349729627,0.079862,62623.0,62617.0,0.07987]
[1728349729828,0.079862,62623.0,62617.0,0.25987]
[1728349730540,0.440664,62622.0,62617.0,0.25987]
[1728349731034,0.3608,62622.0,62617.0,0.25987]
[1728349731231,0.0502,62624.0,62621.0,0.079865]
[1728349731435,0.0465,62624.0,62623.0,0.18]
[1728349732544,0.0465,62624.0,62620.0,0.079866]
[1728349732931,0.0485,62624.0,62623.0,0.001]
[1728349733131,0.09753263,62624.0,62623.0,0.001]
[1728349733331,0.0975333,62624.0,62623.0,0.001]
[1728349734138,0.15482832,62624.0,62623.0,0.001]
[1728349734443,0.15482832,62624.0,62623.0,0.080862]
[1728349734747,0.15482832,62624.0,62620.0,0.001]
[1728349734944,0.10632832,62623.0,62621.0,0.079865]
[1728349735241,0.10632832,62622.0,62621.0,0.079865]
[1728349735444,0.0490333,62622.0,62621.0,0.079865]
[1728349736141,0.002,62623.0,62621.0,0.080865]
[1728349736331,0.04903312,62622.0,62621.0,0.080865]
[1728349736732,0.04903312,62622.0,62621.0,0.001]
[1728349736938,0.17609817,62622.0,62621.0,0.001]
[1728349737340,0.23339298,62622.0,62621.0,0.001]
[1728349737540,0.23539298,62622.0,62621.0,0.001]
[1728349740537,0.079869,62619.0,62616.0,0.02670059]
[1728349740739,0.04903417,62618.0,62615.0,0.199873]
[1728349740940,0.04903417,62618.0,62615.0,0.12]
[1728349741146,0.04903417,62618.0,62617.0,0.07987]
[1728349741839,0.081869,62619.0,62617.0,0.12]
[1728349741840,0.002,62619.0,62617.0,0.12]
[1728349742039,0.002,62619.0,62618.0,0.079869]
[1728349742245,0.24771422,62619.0,62611.0,0.32109705]
[1728349742437,0.127065,62622.0,62617.0,0.08087]
[1728349742438,0.60851422,62618.0,62617.0,0.08087]
[1728349743150,0.55947891,62618.0,62617.0,0.20087]
[1728349744151,0.55747891,62618.0,62617.0,0.20087]
[1728349744542,0.19667891,62618.0,62617.0,0.20087]
[1728349744845,0.19667891,62618.0,62617.0,0.121]
[1728349744846,0.42309737,62618.0,62617.0,0.121]
[1728349745442,0.42309737,62618.0,62617.0,0.20087]
[1728349746050,0.06229737,62618.0,62617.0,0.20087]
[1728349747147,0.20167891,62618.0,62617.0,0.11996738]
[1728349747347,0.20167891,62618.0,62617.0,0.12]
[1728349747947,0.20167891,62618.0,62617.0,0.19987]
[1728349749143,0.06229737,62618.0,62617.0,0.19987]
[1728349749342,0.005,62618.0,62617.0,0.19987]
[1728349750853,0.005,62618.0,62617.0,0.07987]
[1728349751051,0.005,62618.0,62617.0,0.19987]
[1728349755452,0.005,62618.0,62617.0,0.22642658]
[1728349757154,0.20167891,62618.0,62617.0,0.12207037]
[1728349757358,0.28375811,62618.0,62617.0,0.12]
[1728349757548,0.20167891,62618.0,62617.0,0.12]
[1728349757744,0.28375811,62618.0,62617.0,0.12]
[1728349757950,0.28375811,62618.0,62617.0,0.19987]
[1728349758153,0.20167891,62618.0,62617.0,0.19987]
[1728349758452,0.28375811,62618.0,62617.0,0.19987]
[1728349758651,0.20167891,62618.0,62617.0,0.19987]
[1728349758852,0.28375811,62618.0,62617.0,0.19987]
[1728349759153,0.38236024,62618.0,62617.0,0.19987]
[1728349761151,0.38236024,62618.0,62617.0,0.0130412]
[1728349762052,0.32506287,62618.0,62617.0,0.07987]
[1728349762252,0.22646074,62618.0,62617.0,0.19987]
[1728349762452,0.64175641,62618.0,62617.0,0.19987]
[1728349764062,0.57619669,62618.0,62617.0,0.19987]
[1728349764279,0.42029567,62618.0,62617.0,0.19987]
[1728349765858,0.005,62618.0,62617.0,0.19987]
[1728349770460,0.005,62618.0,62617.0,0.24957]
[1728349779174,0.14435705,62618.0,62617.0,0.22461301]
[1728349779558,0.14435705,62618.0,62617.0,0.70369301]
[1728349779759,0.14435705,62618.0,62617.0,0.22461301]
[1728349781171,0.14435705,62618.0,62617.0,0.05491301]
[1728349781368,0.14435705,62618.0,62617.0,0.17491301]
[1728349783076,0.14435705,62618.0,62617.0,0.12134171]
[1728349783277,0.14435705,62618.0,62617.0,0.12]
[1728349783881,0.14435705,62618.0,62617.0,0.19987]
[1728349785585,0.14435705,62618.0,62617.0,0.56067]
[1728349786078,0.14435705,62618.0,62617.0,0.44067]
[1728349786379,0.32501235,62618.0,62612.0,0.14742672]
[1728349786681,0.36511235,62617.0,62614.0,0.079873]
[1728349786878,0.32001235,62616.0,62614.0,0.079873]
[1728349787069,0.25446211,62615.0,62614.0,0.079873]
[1728349787274,0.0451,62617.0,62614.0,0.079873]
[1728349787870,0.0501,62617.0,62614.0,0.079873]
[1728349789575,0.0501,62617.0,62616.0,0.12]
[1728349790176,0.0501,62617.0,62616.0,0.199871]
[1728349790777,0.005,62617.0,62616.0,0.199871]
[1728349790979,0.0473,62621.0,62620.0,0.079866]
[1728349791177,0.0473,62621.0,62620.0,0.199866]
[1728349793490,0.0523,62621.0,62620.0,0.200866]
[1728349793879,0.005,62621.0,62620.0,0.200866]
[1728349794185,0.14435705,62621.0,62620.0,0.200866]
[1728349794585,0.14535705,62621.0,62620.0,1.20108]
[1728349794791,0.13536899,62621.0,62620.0,1.425846]
[1728349795482,0.13536899,62621.0,62620.0,1.45232541]
[1728349796285,0.13536899,62621.0,62620.0,1.45132541]
[1728349796793,0.13536899,62621.0,62620.0,0.22634541]
[1728349798791,0.13536899,62621.0,62620.0,0.20371087]
[1728349802291,0.001,62621.0,62620.0,0.20371087]
[1728349803483,0.001,62621.0,62620.0,0.56451087]
[1728349803795,0.001,62621.0,62620.0,0.50727941]
[1728349805492,0.001,62621.0,62620.0,0.14647941]
[1728349806190,0.001,62621.0,62620.0,0.22634541]
[1728349807796,0.001,62621.0,62620.0,0.10634541]
[1728349808099,0.001,62621.0,62620.0,0.22634541]
[1728349808685,0.001,62621.0,62620.0,0.02647941]
[1728349808892,0.001,62621.0,62620.0,0.12]
[1728349809094,0.001,62621.0,62619.0,0.3608]
[1728349809095,0.558946,62620.0,62611.0,0.0037]
[1728349809419,0.079872,62616.0,62609.0,0.07988]
[1728349809594,0.21643991,62615.0,62609.0,0.07988]
[1728349809898,0.21643991,62614.0,62610.0,0.079878]
[1728349810098,0.21643991,62613.0,62610.0,0.079878]
[1728349810294,0.21643991,62612.0,62610.0,0.079878]
[1728349810498,0.0462,62614.0,62611.0,0.12]
[1728349810698,0.22146107,62613.0,62611.0,0.12]
[1728349810900,0.22146107,62612.0,62611.0,0.12]
[1728349811401,0.22146107,62612.0,62609.0,0.002]
[1728349811593,0.22146107,62611.0,62609.0,0.1513154]
[1728349811795,0.22146107,62610.0,62609.0,0.122]
[1728349812003,0.22146107,62610.0,62609.0,0.12]
[1728349813486,0.22146107,62610.0,62609.0,0.123]
[1728349813790,0.22146107,62610.0,62609.0,0.13]
[1728349814290,0.13937878,62610.0,62609.0,0.129]
[1728349817192,0.0492,62612.0,62609.0,0.129]
[1728349818100,0.0492,62612.0,62609.0,0.127]
[1728349819198,0.0362,62612.0,62609.0,0.126]
[1728349819402,0.0362,62612.0,62609.0,0.006]
[1728349819403,0.079879,62610.0,62609.0,0.006]
[1728349819701,0.079879,62610.0,62609.0,0.126]
[1728349820006,0.079879,62610.0,62609.0,0.124]
[1728349820206,0.079879,62610.0,62609.0,0.122]
[1728349820803,0.079879,62610.0,62609.0,0.126]
[1728349821803,0.079879,62610.0,62609.0,0.122]
[1728349822007,0.079879,62610.0,62609.0,0.125]
[1728349822407,0.079879,62610.0,62609.0,0.004]
[1728349827299,0.079879,62610.0,62609.0,0.124]
[1728349830506,0.440679,62610.0,62609.0,0.124]
[1728349830706,0.560679,62610.0,62609.0,0.004]
[1728349831405,1.55996,62610.0,62604.0,0.00239528]
[1728349831607,0.199885,62605.0,62604.0,0.00239528]
[1728349832201,1.26477611,62605.0,62598.0,0.02942386]
[1728349832409,0.440693,62599.0,62596.0,0.079897]
[1728349832610,0.11027611,62598.0,62596.0,0.079897]
[1728349832807,0.06557611,62597.0,62596.0,0.079897]
[1728349833210,0.079898,62595.0,62594.0,0.02821594]
[1728349833417,0.079898,62595.0,62591.0,0.199903]
[1728349833418,0.2193161,62595.0,62591.0,0.199903]
[1728349833604,0.1394181,62594.0,62591.0,0.199903]
[1728349833803,0.1394181,62593.0,62591.0,0.199903]
[1728349834001,0.13942494,62592.0,62591.0,0.199903]
[1728349834205,0.13942494,62592.0,62591.0,0.12]
[1728349834705,0.21932694,62592.0,62591.0,0.133]
[1728349834904,0.21932694,62592.0,62591.0,0.013]
[1728349835205,0.21932694,62592.0,62591.0,0.026]
[1728349835404,0.22032694,62592.0,62591.0,0.027]
[1728349835702,1.29960694,62592.0,62591.0,0.027]
[1728349836208,1.29960694,62592.0,62581.0,0.07562016]
[1728349836415,0.12,62586.0,62581.0,0.07562016]
[1728349836600,0.18842494,62585.0,62579.0,0.12]
[1728349836803,0.13942494,62584.0,62582.0,0.079915]
[1728349837006,0.13942494,62583.0,62582.0,0.079915]
[1728349837908,0.13942494,62583.0,62579.0,0.16258148]
[1728349838103,0.13942494,62582.0,62579.0,0.16258148]
[1728349838305,0.06558295,62581.0,62579.0,0.22849948]
[1728349838516,0.06558295,62580.0,62579.0,0.22849948]
[1728349839016,0.06558295,62580.0,62579.0,0.24249948]
[1728349839203,0.001,62583.0,62579.0,0.24249948]
[1728349840912,0.001,62580.0,62579.0,0.24249948]
[1728349841606,0.001,62583.0,62579.0,0.23949948]
[1728349841811,0.002,62583.0,62579.0,0.23949948]
[1728349842208,0.001,62580.0,62579.0,0.23949948]
[1728349842517,0.002,62580.0,62579.0,0.24249948]
[1728349842712,0.001,62580.0,62579.0,0.24249948]
[1728349843812,0.001,62583.0,62579.0,0.22849948]
[1728349844011,0.002,62583.0,62582.0,0.12]
[1728349844710,0.001,62583.0,62582.0,0.12]
[1728349844917,0.049,62585.0,62582.0,0.12]
[1728349845622,0.002,62583.0,62582.0,0.143]
[1728349846224,0.001,62583.0,62582.0,0.143]
[1728349847120,0.051,62585.0,62582.0,0.141]
[1728349848024,0.001,62583.0,62582.0,0.143]
[1728349848226,0.002,62583.0,62582.0,0.143]
[1728349848720,0.05,62585.0,62582.0,0.129]
[1728349848924,0.051,62585.0,62582.0,0.141]
[1728349849322,0.05,62585.0,62582.0,0.141]
[1728349849526,0.001,62583.0,62582.0,0.141]
[1728349849915,0.051,62585.0,62582.0,0.141]
[1728349850523,0.001,62583.0,62582.0,0.143]
[1728349850817,0.001,62583.0,62582.0,0.023]
[1728349851427,0.130911,62585.0,62582.0,0.009]
[1728349851627,0.001,62583.0,62582.0,0.021]
[1728349852223,0.080913,62583.0,62582.0,0.021]
[1728349852729,0.079913,62583.0,62582.0,0.021]
[1728349853332,0.200913,62583.0,62582.0,0.012]
[1728349853631,0.201913,62583.0,62582.0,0.023]
[1728349860238,0.081913,62583.0,62582.0,0.023]
[1728349860440,0.002,62583.0,62582.0,0.023]
[1728349864035,0.002,62583.0,62582.0,0.2706217]
[1728349864244,0.002,62583.0,62582.0,0.222915]
[1728349865443,0.002,62583.0,62582.0,0.27071929]
[1728349865745,0.002,62583.0,62582.0,0.222915]
[1728349866333,0.002,62583.0,62582.0,0.27070846]
[1728349867539,0.002,62583.0,62582.0,0.222915]
[1728349871449,0.002,62583.0,62582.0,0.023]
[1728349876144,0.002,62583.0,62582.0,0.102915]
[1728349876345,0.002,62583.0,62582.0,0.222915]
[1728349876650,0.0037,62590.0,62589.0,0.079906]
[1728349876856,0.3608,62592.0,62590.0,0.079904]
[1728349877247,0.3608,62592.0,62591.0,0.079903]
[1728349878753,0.3608,62592.0,62591.0,0.084903]
[1728349879749,0.3608,62592.0,62591.0,0.087903]
[1728349881456,0.3608,62594.0,62591.0,0.087903]
[1728349882462,0.3608,62594.0,62591.0,0.005]
[1728349882661,0.3608,62594.0,62591.0,0.006]
[1728349883046,0.4407,62594.0,62591.0,0.001]
[1728349883251,0.4407,62594.0,62591.0,0.004]
[1728349884162,0.3608,62594.0,62591.0,0.083902]
[1728349884461,0.3608,62594.0,62593.0,0.079901]
[1728349884665,0.42638312,62594.0,62593.0,0.079901]
[1728349885858,0.06558312,62594.0,62593.0,0.082901]
[1728349886059,0.06558312,62594.0,62593.0,0.083901]
[1728349886862,0.06558312,62594.0,62593.0,0.004]
[1728349889068,0.06558312,62599.0,62593.0,0.083901]
[1728349889364,0.4107,62600.0,62593.0,0.083901]
[1728349889559,0.47628312,62600.0,62593.0,0.004]
[1728349889762,0.06558312,62599.0,62593.0,0.124]
[1728349890156,0.06958312,62599.0,62593.0,0.123]
[1728349890360,0.006,62599.0,62593.0,0.12]
[1728349890559,0.079896,62597.0,62593.0,0.12]
[1728349891366,0.12,62598.0,62593.0,0.12]
[1728349891662,0.12,62598.0,62594.0,0.079899]
[1728349892658,0.002,62597.0,62594.0,0.079899]
[1728349893268,0.121,62598.0,62594.0,0.079899]
[1728349893470,0.124,62598.0,62594.0,0.079899]
[1728349894055,0.121,62598.0,62594.0,0.079899]
[1728349894263,0.002,62597.0,62594.0,0.079899]
[1728349895061,0.002,62597.0,62593.0,0.12]
[1728349895266,0.002,62597.0,62596.0,0.079897]
[1728349895756,0.002,62597.0,62593.0,0.12]
[1728349895757,0.079893,62599.0,62593.0,0.1999]
[1728349895964,0.003,62598.0,62594.0,0.079899]
[1728349896559,0.079893,62599.0,62594.0,0.079899]
[1728349896762,0.002,62597.0,62594.0,0.079899]
[1728349897366,0.079893,62599.0,62594.0,0.079899]
[1728349897564,0.003,62598.0,62594.0,0.079899]
[1728349897960,0.004,62598.0,62594.0,0.079899]
[1728349898562,0.003,62598.0,62596.0,0.12]
[1728349898764,0.003,62598.0,62596.0,0.199896]
[1728349898963,0.0499,62600.0,62596.0,0.199896]
[1728349899161,0.002,62597.0,62596.0,0.199896]
[1728349899866,0.004,62598.0,62596.0,0.12]
[1728349900073,0.004,62598.0,62597.0,0.079896]
[1728349900467,0.004,62598.0,62596.0,0.12]
[1728349900769,0.002,62597.0,62596.0,0.12]
[1728349902075,0.002,62597.0,62596.0,0.199897]
[1728349902272,0.06857476,62598.0,62597.0,0.079896]
[1728349902573,0.003,62598.0,62597.0,0.079896]
[1728349903270,0.06557476,62599.0,62598.0,0.079894]
[1728349904472,0.09098,62609.0,62603.0,0.079888]
[1728349904671,0.0477,62607.0,62603.0,0.079888]
[1728349906176,0.137583,62607.0,62603.0,0.001]
[1728349906576,0.149583,62607.0,62603.0,0.002]
[1728349907477,0.0697,62607.0,62603.0,0.002]
[1728349907673,0.0697,62607.0,62603.0,0.081887]
[1728349908177,0.0697,62607.0,62603.0,0.002]
[1728349908368,0.12,62606.0,62603.0,0.002]
[1728349908966,0.4808,62606.0,62595.0,0.0037]
[1728349909276,0.12,62596.0,62595.0,0.0037]
[1728349909579,0.12,62596.0,62592.0,0.079902]
[1728349909879,0.0521,62595.0,62592.0,0.079902]
[1728349910273,0.0521,62595.0,62592.0,0.10933311]
[1728349911772,0.0521,62595.0,62592.0,0.11033311]
[1728349912279,0.0521,62595.0,62592.0,0.11133311]
[1728349914689,0.1721,62595.0,62592.0,0.03143111]
[1728349919482,0.0521,62595.0,62592.0,0.03143111]
[1728349923687,0.0521,62595.0,62593.0,0.0799]
[1728349924887,0.0521,62595.0,62594.0,0.199899]
[1728349926491,0.0521,62595.0,62594.0,0.081899]
[1728349927490,0.06557862,62599.0,62594.0,0.081899]
[1728349928688,0.06557862,62598.0,62594.0,0.081899]
[1728349928991,0.006,62599.0,62594.0,0.079899]
[1728349929789,0.002,62599.0,62594.0,0.079899]
[1728349929991,0.003,62598.0,62594.0,0.079899]
[1728349930300,0.003,62598.0,62592.0,0.02943111]
[1728349930483,0.082895,62598.0,62592.0,0.079902]
[1728349931597,0.080895,62598.0,62592.0,0.079902]
[1728349932394,0.083895,62598.0,62592.0,0.079902]
[1728349937394,0.079904,62591.0,62585.0,0.07991]
[1728349937707,0.12,62589.0,62585.0,0.07991]
[1728349938599,0.12,62589.0,62588.0,0.004]
[1728349938801,0.121,62589.0,62588.0,0.004]
[1728349939008,0.200906,62589.0,62588.0,0.004]
[1728349940500,0.201906,62589.0,62585.0,0.04227547]
[1728349940800,0.079908,62587.0,62585.0,0.04227547]
[1728349941206,0.079908,62587.0,62585.0,0.03627547]
[1728349941903,0.079908,62587.0,62585.0,0.02827547]
[1728349942105,0.080908,62587.0,62585.0,0.008]
[1728349942403,0.002,62587.0,62585.0,0.019]
[1728349948506,0.002,62587.0,62586.0,0.19991]
[1728349948707,0.002,62587.0,62586.0,0.25131]
[1728349948913,0.002,62587.0,62586.0,0.30271]
[1728349950000,0.001,62587.0,62586.0,0.31371]
[1728349950203,0.002,62587.0,62586.0,0.32171]
[1728349952103,0.002,62587.0,62586.0,0.36946821]
[1728349952309,0.002,62587.0,62586.0,0.32171]
[1728349952706,0.002,62587.0,62586.0,0.20171]
[1728349952914,0.081908,62587.0,62586.0,0.019]
[1728349954703,0.002,62587.0,62586.0,0.019]
[1728349956509,0.081908,62587.0,62586.0,0.019]
[1728349960511,0.002,62587.0,62586.0,0.019]
[1728349960713,0.002,62587.0,62586.0,0.09891]
[1728349963009,0.002,62587.0,62586.0,0.019]
[1728349965216,0.081908,62587.0,62586.0,0.019]
[1728349967219,0.002,62587.0,62586.0,0.09891]
[1728349969020,0.002,62587.0,62586.0,0.019]
[1728349969609,0.002,62587.0,62586.0,0.09891]
[1728349974021,0.06758842,62587.0,62586.0,0.09891]
[1728349978825,0.002,62587.0,62586.0,0.09891]
[1728349979527,0.06758842,62587.0,62586.0,0.09891]
[1728349981017,0.002,62587.0,62586.0,0.09891]
[1728349991036,0.002,62587.0,62586.0,0.45971]
[1728349991223,0.06758323,62587.0,62586.0,0.45971]
[1728349991424,0.002,62587.0,62586.0,0.55781]
[1728349996737,0.002,62587.0,62586.0,0.67781]
[1728350005139,0.0037,62593.0,62586.0,0.55781]
[1728350005447,0.0514,62597.0,62594.0,0.079899]
[1728350005642,0.0477,62597.0,62594.0,0.079899]
[1728350006440,0.0037,62603.0,62597.0,0.079894]
[1728350006748,0.0523,62604.0,62600.0,0.12]
[1728350007443,0.0523,62604.0,62602.0,0.079889]
[1728350007644,0.006,62603.0,62602.0,0.079889]
[1728350007948,0.006,62603.0,62598.0,0.3608]
[1728350007949,0.006,62603.0,62598.0,0.440693]
[1728350008541,0.006,62603.0,62599.0,0.079893]
[1728350008742,0.006,62603.0,62602.0,0.001]
[1728350009447,0.008,62603.0,62600.0,0.080892]
[1728350010040,0.008,62603.0,62601.0,0.07989]
[1728350010443,0.014,62603.0,62602.0,0.001]
[1728350010847,0.014,62603.0,62602.0,0.080889]
[1728350012264,0.15340492,62603.0,62602.0,0.001]
[1728350012761,0.15340492,62603.0,62602.0,0.002]
[1728350012960,0.15340492,62603.0,62602.0,0.081889]
[1728350017467,0.15340492,62603.0,62602.0,0.07370011]
[1728350019264,0.014,62603.0,62602.0,0.07370011]
[1728350034372,0.07956802,62603.0,62602.0,0.07370011]
[1728350040082,0.15339757,62603.0,62602.0,0.07370011]
[1728350042373,0.014,62603.0,62602.0,0.07370011]
[1728350047280,0.014,62603.0,62598.0,0.3923835]
[1728350047586,0.079896,62597.0,62596.0,0.0037]
[1728350047884,0.12,62599.0,62592.0,0.3608]
[1728350048087,0.199893,62599.0,62592.0,0.3608]
[1728350048786,0.199893,62599.0,62592.0,0.38940515]
[1728350048988,0.199893,62599.0,62598.0,0.001]
[1728350049388,0.26546102,62599.0,62591.0,0.079902]
[1728350049582,0.079896,62597.0,62592.0,0.3608]
[1728350049776,0.06556802,62596.0,62592.0,0.3608]
[1728350049979,0.06556802,62595.0,62592.0,0.3608]
[1728350050180,0.06556802,62594.0,62592.0,0.3608]
[1728350050388,0.06556802,62593.0,62592.0,0.3608]
[1728350051185,0.06556802,62593.0,62591.0,0.10800349]
[1728350051391,0.0505,62594.0,62592.0,0.3618]
[1728350051577,0.06557711,62593.0,62592.0,0.001]
[1728350051775,0.06557711,62593.0,62592.0,0.3618]
[1728350052095,0.06557711,62593.0,62592.0,0.001]
[1728350052393,1.27595811,62593.0,62592.0,0.001]
[1728350052688,1.27595811,62593.0,62586.0,0.0037]
[1728350052888,1.27595811,62593.0,62584.0,0.3608]
[1728350052889,0.12,62587.0,62584.0,0.3608]
[1728350053199,0.06557711,62586.0,62584.0,0.3608]
[1728350053385,0.199909,62587.0,62584.0,0.3608]
[1728350053386,0.06557711,62585.0,62584.0,0.3608]
[1728350054192,0.06557711,62585.0,62584.0,0.39820617]
[1728350054392,0.06557711,62586.0,62584.0,0.39820617]
[1728350054982,0.001,62585.0,62584.0,0.39920617]
[1728350055685,0.001,62585.0,62584.0,0.40920617]
[1728350055886,0.06657711,62585.0,62584.0,0.40920617]
[1728350056087,0.001,62585.0,62584.0,0.40920617]
[1728350056488,0.001,62586.0,62584.0,0.52020617]
[1728350056796,0.001,62585.0,62584.0,0.52620617]
[1728350057488,0.081911,62585.0,62584.0,0.40720617]
[1728350057700,0.201911,62585.0,62584.0,0.3778]
[1728350057883,0.201911,62585.0,62584.0,0.017]
[1728350058293,0.201911,62585.0,62578.0,0.0037]
[1728350058499,0.12,62579.0,62575.0,0.21114369]
[1728350058798,0.079922,62576.0,62575.0,0.239899]
[1728350059104,0.199922,62576.0,62575.0,0.239899]
[1728350060091,0.200922,62576.0,62575.0,0.249899]
[1728350060496,0.201922,62576.0,62575.0,0.254899]
[1728350078509,0.081922,62576.0,62575.0,0.254899]
[1728350087316,0.081922,62576.0,62575.0,0.015]
[1728350087317,0.201922,62576.0,62575.0,0.015]
[1728350101829,0.079928,62572.0,62571.0,0.00239673]
[1728350102037,0.079934,62567.0,62566.0,0.0037]
[1728350102235,0.079934,62567.0,62561.0,0.0037]
[1728350102236,0.079938,62564.0,62561.0,0.0037]
[1728350102439,0.079942,62561.0,62560.0,0.02884509]
[1728350102623,0.079944,62559.0,62556.0,0.079947]
[1728350102828,0.199944,62559.0,62556.0,0.079947]